fUSD/lending_fUSD_20260412
["ID","MTS","AMOUNT","RATE_DAILY","PERIOD"]
[420312797,1775950260088,-1048.0,0.00034,7]
[420312798,1775950260097,-3159.2985265,0.000425,120]
[420312799,1775950260114,-2122.85360847,0.000425,120]
[420312800,1775950260125,-733.9253502,0.000425,120]
[420312801,1775950260137,-1016.49353724,0.000425,120]
[420312802,1775950260151,-44679.89146375,0.000425,120]
[420312803,1775950260182,-500.0,0.000425,120]
[420312804,1775950260195,-4304.34282013,0.000425,120]
[420312805,1775950260216,-931.48943093,0.000425,120]
[420312806,1775950260408,-1749.89601426,0.000425,120]
[420312807,1775950260437,-2722.93999999,0.000425,120]
[420312808,1775950261454,-238.52885412,0.000249,2]
[420312809,1775950261474,-260.6228432,0.00035397,120]
[420312810,1775950261510,-1827.0,0.00023214,7]
[420312811,1775950261522,-21.6171568,0.00035397,120]
[420312812,1775950261549,-282.24,0.00041808,120]
[420312813,1775950261561,-7712.15286512,0.000425,120]
[420312814,1775950261597,-10023.07459228,0.000425,120]
[420312815,1775950261610,-2928.4638173,0.000425,120]
[420312816,1775950261621,-6266.24241951,0.000425,120]
[420312817,1775950261646,-500.0,0.000425,120]
[420312818,1775950261657,-332.13,0.00042546,120]
[420312819,1775950261682,-500.0,0.00042569,120]
[420312820,1775950261692,-5395.63571674,0.0004257,2]
[420312821,1775950261726,-7097.19521138,0.0004257,2]
[420312822,1775950261740,-13009.80470503,0.0004257,2]
[420312823,1775950262101,-315.0,0.00024558,10]
[420312824,1775950262111,-1754.0,0.00024558,10]
[420312825,1775950262120,-7144.42255992,0.0004257,2]
[420312826,1775950262139,-5577.41348923,0.0004257,2]
[420312827,1775950262159,-10169.62952678,0.0004257,2]
[420312828,1775950262183,-500.0,0.0004257,2]
[420312829,1775950385001,314.10854757,0.0002863,120]
[420312830,1775950462959,649.61,0.00030137,120]
[420312832,1775950675778,2678.06,8.549e-05,2]
[420312834,1775950995688,500.0,0.00025444,120]
[420312835,1775951325788,1600.0,0.00028623,120]
[420312839,1775951431639,-201.09223517,0.00013627,2]
[420312840,1775951431650,-195.0,0.00013653,2]
[420312841,1775951431659,-331.06410047,0.00013653,2]
[420312842,1775951431672,-268.93589953,0.00013653,2]
[420312843,1775951431684,-213.58667797,0.00013678,2]
[420312844,1775951431697,-168.491342,0.00013678,2]
[420312845,1775951431707,-195.0,0.00013689,2]
[420312846,1775951431724,-152.88072445,0.00013689,2]
[420312848,1775951431738,-42.11927555,0.00013689,2]
[420312850,1775951431753,-600.0,0.00013689,2]
[420312852,1775951431764,-500.0,0.00013702,2]
[420312853,1775951431774,-500.0,0.00013702,2]
[420312854,1775951431789,-58.11856043,0.00013702,2]
[420312857,1775951431813,-441.88143957,0.00013702,2]
[420312860,1775951431823,-49.86856043,0.00013702,2]
[420312862,1775951431836,-450.13143957,0.00013702,2]
[420312864,1775951431863,-48.47672754,0.00013714,2]
[420312866,1775951431877,-251.52327246,0.00013714,2]
[420312868,1775951431902,-300.0,0.00013714,2]
[420312870,1775951431915,-95.26352342,0.00013714,2]
[420312872,1775951431938,-204.73647658,0.00013714,2]
[420312873,1775951431958,-2500.0,0.00013727,2]
[420312874,1775951431970,-1613.43975335,0.00013763,2]
[420312875,1775951431997,-463.04172306,0.00013763,2]
[420312876,1775951432017,-362.36399931,0.00013763,2]
[420312877,1775951432039,-61.15452428,0.00013763,2]
[420312878,1775951432074,-279.086193,0.00013763,2]
[420312879,1775951432102,-2220.913807,0.00013763,2]
[420312880,1775951432126,-2500.0,0.00013763,2]
[420312881,1775951432139,-11365.5923,0.00013773,2]
[420312882,1775951432164,-194.9445,0.000144,2]
[420312883,1775951432194,-300.0,0.0001499,2]
[420312884,1775951432204,-500.0,0.0001499,2]
[420312885,1775951432214,-388.01541161,0.0001499,2]
[420312886,1775951432242,-200.0,0.0001499,2]
[420312887,1775951432252,-200.0,0.0001499,2]
[420312888,1775951432285,-205.07967758,0.0001499,2]
[420312889,1775951432295,-195.0,0.0001499,2]
[420312890,1775951432305,-600.0,0.0001499,2]
[420312891,1775951432330,-2500.0,0.00015046,2]
[420312892,1775951432340,-1255.145,0.00015159,2]
[420312893,1775951432350,-160.13,0.00015476,2]
[420312894,1775951432365,-500.0,0.00015999,2]
[420312895,1775951432385,-160.13,0.00018055,2]
[420312896,1775951432397,-236.0,0.0002,2]
[420312897,1775951432410,-464.0,0.0002,2]
[420312898,1775951432429,-216.0,0.0002,2]
[420312899,1775951432454,-158.0,0.0002,2]
[420312900,1775951432464,-157.0,0.0002,2]
[420312901,1775951432475,-200.0,0.0002,10]
[420312902,1775951432493,-300.0,0.000201,10]
[420312903,1775951432516,-627.0,0.00020445,2]
[420312904,1775951432536,-160.13,0.00020634,2]
[420312905,1775951432546,-236.0,0.00021,2]
[420312906,1775951432576,-464.0,0.00021,2]
[420312907,1775951432586,-216.0,0.00021,2]
[420312908,1775951432601,-164.0,0.00021,2]
[420312909,1775951432617,-165.0,0.00021,2]
[420312910,1775951432627,-299.99,0.00021757,7]
[420312911,1775951432640,-150.99,0.00021757,2]
[420312912,1775951432662,-2801.26,0.00021757,2]
[420312913,1775951432671,-160.0,0.00021976,2]
[420312914,1775951432684,-236.0,0.00022,2]
[420312915,1775951432705,-464.0,0.00022,2]
[420312916,1775951432715,-216.0,0.00022,2]
[420312917,1775951432729,-1714.73174119,0.00022,2]
[420312918,1775951432754,-1773.28031811,0.00022,2]
[420312919,1775951432764,-37117.10113965,0.0002219,2]
[420312920,1775951432775,-1714.73174119,0.000222,2]
[420312921,1775951432792,-1773.28031811,0.000222,2]
[420312922,1775951432802,-1714.73174119,0.000224,2]
[420312923,1775951432813,-1773.28031811,0.000224,2]
[420312924,1775951432838,-1714.73174119,0.000226,2]
[420312925,1775951432850,-1773.28031811,0.000226,2]
[420312926,1775951432860,-1714.73174119,0.000229,2]
[420312927,1775951432884,-1773.28031811,0.000229,2]
[420312928,1775951432901,-236.0,0.00023,2]
[420312929,1775951432934,-464.0,0.00023,2]
[420312930,1775951432970,-216.0,0.00023,2]
[420312931,1775951433034,-1714.73174119,0.000231,2]
[420312932,1775951433067,-1773.28031811,0.000231,2]
[420312933,1775951433092,-160.13,0.00023214,2]
[420312934,1775951433108,-1714.73174119,0.000233,2]
[420312935,1775951433139,-1773.28031811,0.000233,2]
[420312936,1775951433150,-1714.73174119,0.000236,2]
[420312937,1775951433171,-1773.28031811,0.000236,2]
[420312938,1775951433196,-1714.73174119,0.000238,2]
[420312939,1775951433205,-1773.28031811,0.000238,2]
[420312940,1775951433215,-236.0,0.00024,2]
[420312941,1775951433236,-464.0,0.00024,2]
[420312942,1775951433246,-216.0,0.00024,2]
[420312943,1775951433257,-1714.73174119,0.00024,2]
[420312944,1775951433276,-1773.28031811,0.00024,2]
[420312945,1775951433286,-500.0,0.00024999,2]
[420312946,1775951433301,-500.0,0.00024999,3]
[420312947,1775951433314,-500.0,0.00024999,4]
[420312948,1775951433326,-248.0,0.00025,2]
[420312949,1775951433336,-466.0,0.00025,2]
[420312950,1775951433353,-222.0,0.00025,2]
[420312951,1775951433364,-160.13,0.00025793,2]
[420312952,1775951433374,-200.0,0.00028268,2]
[420312953,1775951433388,-160.13,0.00028372,2]
[420312954,1775951433399,-626.0,0.00028623,10]
[420312955,1775951433409,-1678.0,0.00028623,10]
[420312956,1775951433420,-200.0,0.00028663,2]
[420312957,1775951433431,-150.0,0.00029534,2]
[420312958,1775951433441,-150.9145,0.00029925,30]
[420312959,1775951433452,-150.9145,0.00029941,30]
[420312960,1775951433464,-150.0,0.00030715,2]
[420312961,1775951433474,-160.13,0.00030952,2]
[420312962,1775951433484,-150.0,0.00031011,2]
[420312963,1775951433495,-500.0,0.00031942,3]
[420312964,1775951433506,-1600.0,0.00032201,120]
[420312965,1775951433517,-8734.11,0.00032502,10]
[420312966,1775951433527,-150.0,0.00032562,2]
[420312967,1775951433539,-152.0,0.00032798,30]
[420312968,1775951433550,-216.0,0.00032798,30]
[420312969,1775951433560,-158.0,0.00032798,30]
[420312970,1775951433569,-157.0,0.00032798,30]
[420312971,1775951433586,-151.0,0.00032809,30]
[420312972,1775951433595,-151.0,0.00032809,30]
[420312973,1775951433605,-236.0,0.00032809,30]
[420312974,1775951433618,-464.0,0.00032809,30]
[420312975,1775951433630,-165.4873,0.00033688,2]
[420312976,1775951433639,-152.0,0.00033798,30]
[420312977,1775951433651,-216.0,0.00033798,30]
[420312978,1775951433665,-158.0,0.00033798,30]
[420312979,1775951433687,-157.0,0.00033798,30]
[420312980,1775951433696,-151.0,0.00033809,30]
[420312981,1775951433710,-151.0,0.00033809,30]
[420312982,1775951433735,-236.0,0.00033809,30]
[420312983,1775951433744,-464.0,0.00033809,30]
[420312984,1775951433780,-150.0,0.0003419,2]
[420312985,1775951433803,-152.7833655,0.00034197,60]
[420312986,1775951433813,-500.0,0.00034197,60]
[420312987,1775951433822,-500.0,0.00034197,60]
[420312988,1775951433840,-500.0,0.00034197,60]
[420312989,1775951433851,-500.0,0.00034197,60]
[420312990,1775951433861,-500.0,0.00034197,60]
[420312991,1775951433870,-500.0,0.00034197,60]
[420312992,1775951433890,-500.0,0.00034197,60]
[420312993,1775951433902,-500.0,0.00034197,60]
[420312994,1775951433912,-500.0,0.00034197,60]
[420312995,1775951433921,-500.0,0.00034197,60]
[420312996,1775951433941,-500.0,0.00034197,60]
[420312997,1775951433951,-500.0,0.00034197,60]
[420312998,1775951434493,-163.480216,0.00034197,60]
[420312999,1775951434512,-167.5,0.00034197,60]
[420313000,1775951434549,-500.0,0.00034197,60]
[420313001,1775951434565,-500.0,0.00034197,60]
[420313002,1775951434589,-500.0,0.00034197,60]
[420313003,1775951434598,-500.0,0.00034197,60]
[420313004,1775951434636,-500.0,0.00034197,60]
[420313005,1775951434647,-500.0,0.00034197,60]
[420313006,1775951434671,-500.0,0.00034197,60]
[420313007,1775951434683,-500.0,0.00034197,60]
[420313008,1775951434694,-500.0,0.00034197,60]
[420313009,1775951434710,-500.0,0.00034197,60]
[420313010,1775951434729,-500.0,0.00034197,60]
[420313011,1775951434739,-500.0,0.00034197,60]
[420313012,1775951434754,-500.0,0.00034197,60]
[420313013,1775951434782,-500.0,0.00034197,60]
[420313014,1775951434794,-500.0,0.00034197,60]
[420313015,1775951434818,-644.891342,0.00034197,60]
[420313016,1775951434829,-1500.0,0.00034795,2]
[420313017,1775951434846,-152.0,0.00034798,30]
[420313018,1775951434877,-216.0,0.00034798,30]
[420313019,1775951434899,-158.0,0.00034798,30]
[420313020,1775951434909,-157.0,0.00034798,30]
[420313021,1775951434930,-151.0,0.00034809,30]
[420313022,1775951434940,-151.0,0.00034809,30]
[420313023,1775951434949,-236.0,0.00034809,30]
[420313024,1775951434973,-464.0,0.00034809,30]
[420313025,1775951435000,-500.0,0.00035043,120]
[420313026,1775951435037,-1053.99746305,0.00035181,2]
[420313027,1775951435066,-2000.0,0.000352,2]
[420313028,1775951435097,-1600.0,0.00035281,2]
[420313029,1775951435108,-2000.0,0.00035383,2]
[420313030,1775951435126,-249.91046523,0.00035497,2]
[420313031,1775951435174,-249.91046523,0.00035497,2]
[420313032,1775951435201,-1252.7,0.00035723,2]
[420313033,1775951435227,-1600.0,0.00035778,120]
[420313034,1775951435236,-152.0,0.00035798,30]
[420313035,1775951435254,-216.0,0.00035798,30]
[420313036,1775951435269,-158.0,0.00035798,30]
[420313037,1775951435279,-157.0,0.00035798,30]
[420313038,1775951435295,-300.0,0.00035806,2]
[420313039,1775951435319,-151.0,0.00035809,30]
[420313040,1775951435329,-151.0,0.00035809,30]
[420313041,1775951435345,-236.0,0.00035809,30]
[420313042,1775951435358,-464.0,0.00035809,30]
[420313043,1775951435367,-150.0,0.00035899,2]
[420313044,1775951435380,-1053.99746298,0.00036112,2]
[420313045,1775951435393,-1600.0,0.00036164,2]
[420313046,1775951435410,-4292.21,0.00036607,30]
[420313047,1775951435419,-162.0,0.00036798,30]
[420313048,1775951435428,-216.0,0.00036798,30]
[420313049,1775951435437,-158.0,0.00036798,30]
[420313050,1775951435449,-157.0,0.00036798,30]
[420313051,1775951435458,-152.0,0.00036809,30]
[420313052,1775951435467,-151.0,0.00036809,30]
[420313053,1775951435476,-236.0,0.00036809,30]
[420313054,1775951435485,-464.0,0.00036809,30]
[420313055,1775951435509,-1053.99746298,0.00037042,2]
[420313056,1775951435521,-1600.0,0.00037046,2]
[420313057,1775951435530,-3114.33,0.00037424,30]
[420313058,1775951435550,-150.0,0.00037694,2]
[420313059,1775951435568,-216.0,0.00037798,30]
[420313060,1775951435577,-158.0,0.00037798,30]
[420313061,1775951435602,-157.0,0.00037798,30]
[420313062,1775951435612,-151.0,0.00037809,30]
[420313063,1775951435636,-236.0,0.00037809,30]
[420313064,1775951435645,-464.0,0.00037809,30]
[420313065,1775951435655,-1600.0,0.00037928,2]
[420313066,1775951435667,-1053.99746298,0.00037973,2]
[420313067,1775951435684,-156.0,0.00038242,5]
[420313068,1775951435695,-1795.8,0.00038242,60]
[420313069,1775951435707,-216.0,0.00038798,30]
[420313070,1775951435729,-158.0,0.00038798,30]
[420313071,1775951435738,-157.0,0.00038798,30]
[420313072,1775951435749,-151.0,0.00038809,30]
[420313073,1775951435758,-236.0,0.00038809,30]
[420313074,1775951435773,-464.0,0.00038809,30]
[420313075,1775951435783,-1600.0,0.0003881,2]
[420313076,1775951435792,-1255.146,0.00038869,53]
[420313077,1775951435807,-1053.99746298,0.00038904,2]
[420313078,1775951435819,-184.91,0.00039041,120]
[420313079,1775951435828,-697.65,0.00039059,60]
[420313080,1775951435842,-210.06,0.00039136,30]
[420313081,1775951435857,-1600.0,0.00039356,120]
[420313082,1775951435866,-150.0,0.00039579,2]
[420313083,1775951435882,-1000.0,0.000398,30]
[420313084,1775951435895,-2000.0,0.00039805,2]
[420313085,1775951435906,-1053.99746298,0.00039834,15]
[420313086,1775951435927,-250.0,0.0004,120]
[420313087,1775951435939,-239.86,0.00040279,120]
[420313088,1775951435958,-344.0,0.000405,120]
[420313089,1775951435975,-150.0,0.0004059,120]
[420313090,1775951435995,-344.0,0.0004059,120]
[420313091,1775951436030,-344.0,0.0004059,120]
[420313092,1775951436040,-2500.0,0.0004075,2]
[420313093,1775951436052,-1053.99746298,0.00040765,15]
[420313094,1775951436067,-2481.47819034,0.000408,28]
[420313095,1775951436077,-1254.78840526,0.000408,15]
[420313096,1775951436087,-150.0,0.00040822,60]
[420313097,1775951436100,-150.0,0.00040822,60]
[420313098,1775951436114,-214.72513774,0.00040822,60]
[420313099,1775951436124,-500.0,0.00040822,2]
[420313100,1775951436134,-500.0,0.00040822,2]
[420313101,1775951436151,-500.0,0.00040822,2]
[420313102,1775951436160,-500.0,0.00040822,2]
[420313103,1775951436182,-500.0,0.00040822,2]
[420313104,1775951436192,-500.0,0.00040822,2]
[420313105,1775951436201,-500.0,0.00040822,2]
[420313106,1775951436211,-500.0,0.00040822,2]
[420313107,1775951436221,-500.0,0.00040822,2]
[420313108,1775951436233,-500.0,0.00040822,2]
[420313109,1775951436245,-500.0,0.00040822,2]
[420313110,1775951436254,-338.15756367,0.00040822,2]
[420313111,1775951436263,-500.0,0.00040848,120]
[420313112,1775951436274,-500.0,0.00040848,120]
[420313113,1775951436289,-500.0,0.00040849,120]
[420313114,1775951436300,-500.0,0.00040849,120]
[420313115,1775951436309,-500.0,0.00040849,120]
[420313116,1775951436318,-17449.25546643,0.0004085,2]
[420313122,1775951439220,-1906.31029911,0.00032191,10]
[420313126,1775951439798,-651.84164805,0.00032191,10]
[420313127,1775951439884,-1735.27915185,0.00032191,10]
[420313128,1775951439898,-2984.98890099,0.00032191,10]
[420313129,1775951439943,-547.01109901,0.00036607,30]
[420313130,1775951440362,-1603.13890099,0.00036607,30]
[420313131,1775951440373,-140.68398456,0.00037424,30]
[420313133,1775951442713,-3376.17061011,0.00020875,2]
[420313135,1775951442844,-396.82938989,0.00020875,2]
[420313136,1775951442853,-1242.18601544,0.00037424,30]
[420313137,1775951442864,-720.87,0.00038242,60]
[420313138,1775951442880,-500.0,0.00038356,120]
[420313139,1775951442889,-500.0,0.00040164,120]
[420313140,1775951442898,-181.4939,0.000407,2]
[420313141,1775951442908,-1477.0,0.0004085,60]
[420313142,1775951442924,-78744.05956047,0.0004085,2]
[420313143,1775951442941,-410.32677016,0.0004085,2]
[420313144,1775951442981,-8506.64291491,0.0004085,2]
[420313145,1775951443009,-795.95790187,0.0004085,2]
[420313146,1775951443035,-602.73475839,0.0004085,2]
[420313154,1775951445566,-1063.75683969,0.00034795,2]
[420313155,1775951445588,-436.24316031,0.00034795,2]
[420313156,1775951445604,-1546.0,0.0004085,60]
[420313157,1775951445618,-11159.61123789,0.0004085,2]
[420313158,1775951445769,-42861.85364533,0.0004085,2]
[420313165,1775951446467,-3949.06120022,0.0004085,2]
[420313166,1775951446479,-6148.41103479,0.0004085,2]
[420313167,1775951446489,-28099.22773341,0.0004085,2]
[420313168,1775951562478,406.0,0.0003013,120]
[420313169,1775952072988,152.0,0.00030136,120]
[420313199,1775952632805,-207.70314737,0.00011675,5]
[420313200,1775952632817,-175.48383209,0.00011675,2]
[420313201,1775952632835,-175.48383209,0.00012006,2]
[420313202,1775952632853,-116.32918845,0.00012337,2]
[420313203,1775952632868,-59.15464364,0.00012337,2]
[420313204,1775952632881,-300.0,0.00012842,2]
[420313205,1775952632895,-175.48383209,0.00012843,2]
[420313206,1775952632918,-250.0,0.00013,2]
[420313207,1775952632930,-5654.72422058,0.00013,2]
[420313208,1775952632952,-472.0526679,0.00013,2]
[420313209,1775952632962,-1000.0,0.000135,2]
[420313210,1775952632975,-150.0,0.00013699,2]
[420313211,1775952632988,-150.0,0.000143,2]
[420313212,1775952633011,-1358.109,0.00014715,2]
[420313213,1775952633020,-173.961,0.00014715,2]
[420313215,1775952633029,-1517.64,0.000153,2]
[420313216,1775952633040,-250.0,0.00015427,2]
[420313217,1775952633070,-4554.65803896,0.00015599,2]
[420313219,1775952633080,-150.0,0.00015599,2]
[420313221,1775952633089,-45522.93887251,0.000156,2]
[420313223,1775952633106,-2000.0,0.0001589,2]
[420313225,1775952633116,-500.0,0.00015999,2]
[420313227,1775952633126,-500.0,0.00015999,2]
[420313230,1775952633140,-500.0,0.00015999,2]
[420313231,1775952633150,-500.0,0.00015999,2]
[420313233,1775952633159,-500.0,0.00015999,2]
[420313235,1775952633170,-500.0,0.00015999,2]
[420313237,1775952633181,-500.0,0.00015999,2]
[420313239,1775952633193,-500.0,0.00015999,2]
[420313241,1775952633203,-249.79740673,0.00015999,2]
[420313243,1775952633214,-343.37442386,0.00015999,2]
[420313244,1775952633227,-186.97447771,0.00015999,2]
[420313245,1775952633237,-500.0,0.00015999,2]
[420313246,1775952633246,-500.0,0.00015999,2]
[420313247,1775952633262,-592.50142488,0.00015999,2]
[420313248,1775952633272,-500.0,0.00015999,2]
[420313249,1775952633281,-499.99999999,0.00015999,2]
[420313250,1775952633291,-164283.64975299,0.00016,2]
[420313251,1775952633310,-11609.64820894,0.00016,2]
[420313252,1775952633322,-19366.88824245,0.00016,2]
[420313253,1775952633375,-316.11449079,0.00016,2]
[420313254,1775952633397,-1075.43,0.00016,2]
[420313255,1775952633408,-414.91469741,0.00016,2]
[420313256,1775952633538,-1288.30785659,0.00016,2]
[420313257,1775952633550,-5198.14859819,0.00016,2]
[420313258,1775952633566,-278.52586619,0.00016,2]
[420313271,1775952637904,-17800.45971582,0.00016,2]
[420313273,1775952637996,-370.25816643,0.00016,2]
[420313274,1775952638130,-12935.05003534,0.00016,2]
[420313275,1775952638147,-273.62613258,0.00016,2]
[420313276,1775952638161,-16840.51342634,0.00016,2]
[420313277,1775952638179,-18542.795535,0.00016,2]
[420313413,1775952640241,-2878.50756758,0.00016,2]
[420313417,1775952640254,-6315.3454475,0.00016,2]
[420313420,1775952640598,-6412.844328,0.00016,2]
[420313428,1775952643634,-5375.853944,0.00016,2]
[420313429,1775952643651,-1877.11396906,0.00016,2]
[420313432,1775952645717,-1466.38479433,0.00016,2]
[420313433,1775952645729,-9559.21788676,0.00016,2]
[420313434,1775952645758,-60265.87492689,0.00016,2]
[420313435,1775952645843,-3016.57165071,0.00016,2]
[420313436,1775952645857,-322.8916,0.00016,2]
[420313437,1775952645868,-517.55965814,0.00016,2]
[420313438,1775952646103,-22400.87369918,0.00016,2]
[420313439,1775952646115,-1500.0,0.00016468,2]
[420313440,1775952646138,-500.0,0.00016633,2]
[420313441,1775952646155,-754.57,0.00016641,2]
[420313442,1775952646174,-1441.52334143,0.00016873,2]
[420313443,1775952646191,-2171.29341653,0.00016973,2]
[420313444,1775952646211,-316.19923893,0.00016973,2]
[420313446,1775952646237,-500.0,0.00016983,2]
[420313447,1775952646247,-166.66,0.00018621,2]
[420313448,1775952646653,-150.0,0.00018982,2]
[420313449,1775952646664,-166.66,0.00019013,2]
[420313450,1775952646679,-150.0,0.00019078,2]
[420313451,1775952646689,-285.50676789,0.00019078,2]
[420313452,1775952646699,-168.0,0.00019253,2]
[420313453,1775952646710,-500.0,0.00019253,2]
[420313454,1775952646728,-166.66,0.00019405,2]
[420313455,1775952646737,-168.0,0.00019551,2]
[420313456,1775952646747,-1441.52334141,0.00019784,2]
[420313457,1775952646756,-166.66,0.00019797,2]
[420313458,1775952646770,-316.19923889,0.00019873,2]
[420313459,1775952646780,-157.0,0.0002,2]
[420313460,1775952646791,-312.0,0.0002,2]
[420313461,1775952646800,-200.0,0.0002,10]
[420313462,1775952646810,-214.875389,0.000201,10]
[420313463,1775952646833,-166.66,0.00020189,2]
[420313464,1775952646842,-166.66,0.00020581,2]
[420313465,1775952646856,-168.0,0.00020643,2]
[420313466,1775952646879,-2171.29341652,0.00020796,2]
[420313467,1775952646892,-157.0,0.00021,2]
[420313468,1775952646906,-312.0,0.00021,2]
[420313469,1775952646921,-157.0,0.00022,2]
[420313470,1775952646938,-312.0,0.00022,2]
[420313471,1775952646953,-500.0,0.00022089,2]
[420313472,1775952646963,-584.34318396,0.00022089,2]
[420313473,1775952646985,-500.0,0.00022089,2]
[420313474,1775952646995,-500.0,0.00022089,2]
[420313475,1775952647007,-500.0,0.00022089,2]
[420313476,1775952647029,-500.0,0.00022089,2]
[420313477,1775952647038,-15161.03143154,0.0002209,2]
[420313478,1775952647063,-2913.12018298,0.0002209,2]
[420313479,1775952647079,-335.29466095,0.0002209,2]
[420313480,1775952702537,532.0,0.0003013,120]
[420313481,1775952703491,1517.0,0.0003013,120]
[420313482,1775952704240,1846.0,0.0003013,120]
[420313483,1775952706303,306.0,0.0003013,120]
[420313484,1775952707117,231.0,0.0003013,120]
[420313485,1775952762503,385.0,0.0003013,120]
[420313486,1775952822545,312.0,0.0003013,120]
[420313487,1775952823962,574.6004729,0.00030136,120]
[420313488,1775952968635,300.0,0.00030136,120]
[420313489,1775952970365,500.0,0.0003013,120]
[420313490,1775953070506,297.36926272,0.00030137,120]
[420313491,1775953098996,156.04,7.922e-05,2]
[420313496,1775953831826,-155.05,0.00011903,2]
[420313497,1775953831842,-250.0,0.00013,2]
[420313498,1775953831856,-3074.0,0.00013699,2]
[420313499,1775953831868,-150.0,0.00013699,2]
[420313500,1775953831883,-2500.0,0.00013915,2]
[420313501,1775953831894,-150.0,0.00013973,2]
[420313502,1775953831915,-151.0,0.00014555,2]
[420313503,1775953831934,-150.0,0.00014586,2]
[420313504,1775953831952,-300.0,0.00014658,2]
[420313505,1775953831970,-1200.0,0.00014658,2]
[420313506,1775953831985,-300.0,0.00014658,2]
[420313507,1775953831996,-5718.98,0.00014659,2]
[420313508,1775953832006,-12582.95,0.00014856,2]
[420313509,1775953832022,-300.0,0.00015,2]
[420313510,1775953832038,-150.0,0.00015,2]
[420313511,1775953832055,-205.48440614,0.00015013,2]
[420313512,1775953832077,-205.48440612,0.00015207,2]
[420313513,1775953832092,-300.0,0.00015299,2]
[420313514,1775953832107,-51297.5818511,0.000153,2]
[420313515,1775953832137,-6068.5179489,0.000153,2]
[420313516,1775953832157,-295.37,0.00015345,2]
[420313518,1775953832182,-1086.487,0.00015399,2]
[420313521,1775953832206,-4612.19611152,0.000154,2]
[420313523,1775953832228,-19695.94468848,0.000154,2]
[420313524,1775953832259,-1000.0,0.000154,2]
[420313525,1775953832270,-1000.0,0.000154,2]
[420313526,1775953832286,-1153.2186732,0.000154,2]
[420313527,1775953832311,-205.48440612,0.000154,2]
[420313528,1775953832326,-2850.1576,0.000154,2]
[420313529,1775953832342,-1030.29092863,0.000154,2]
[420313530,1775953832358,-1094.2927,0.000154,2]
[420313531,1775953832371,-17211.023,0.000154,2]
[420313532,1775953832385,-2500.0,0.000154,2]
[420313533,1775953832402,-151.0,0.00015491,2]
[420313534,1775953832413,-500.0,0.00015491,2]
[420313535,1775953832422,-151.0,0.00015491,2]
[420313536,1775953832434,-500.0,0.00015491,2]
[420313537,1775953832448,-44.89117454,0.00015491,2]
[420313538,1775953832460,-155.10882546,0.00015491,2]
[420313539,1775953832471,-518.84676166,0.00015491,2]
[420313540,1775953832480,-266.16084216,0.00015491,2]
[420313541,1775953832868,-933.04512799,0.00015491,2]
[420313542,1775953832902,-151.0,0.00015491,2]
[420313543,1775953832911,-151.0,0.00015491,2]
[420313544,1775953832929,-174.85818471,0.00015499,2]
[420313545,1775953832940,-150.0,0.00015499,2]
[420313546,1775953832949,-500.0,0.00015499,2]
[420313547,1775953832959,-500.0,0.00015499,2]
[420313548,1775953832975,-500.0,0.00015499,2]
[420313549,1775953832984,-500.0,0.00015499,2]
[420313550,1775953832994,-500.0,0.00015499,2]
[420313551,1775953833008,-500.0,0.00015499,2]